{"text_format":"1","workbook":"xlsx","n_sheets":7,"sheets":["Linkovi","Baza podataka","Liste","Formule","Odeljenja","Predmeti","Predaje"],"not_rendered":{"charts":0,"images":1,"macros":1,"external_links":0,"defined_names":8,"comments":0,"pivot_tables":0},"unopened":[],"bounds":{"document_bytes":16777216,"sheet_cells":100000,"rows_first":2000,"rows_last":500,"rows_between":2000,"halvings":0,"cell_chars":16384,"cell_head_chars":4096},"cells_cut":0,"cells_raw":0,"read":"whole","date_system":"1900"}

{"sheet":"Linkovi","index":0,"n_rows":0,"n_cols":0,"rows_kept":0,"cut":false,"hidden":false,"merged":[]}

{"sheet":"Baza podataka","index":1,"n_rows":3,"n_cols":14,"rows_kept":3,"cut":false,"hidden":false,"merged":[]}
[1,2,3,4,5,6,7,8,9,10,11,12,13]
["Prezime i ime nastavnika","Predmet","Predmet (drugi)","Norma nastavnika","Norma za školsku godinu","Odeljenjski starešina",1.1000000000000001,null,null,null,null,null,null,"Nedeljno"]
["Ađanski Mate","Istorija",null,700,null,"3.e",true,null,null,null,null,null,null,{"$f":"SUMIF(Predaje!A2:A83,Predaje!A2,Predaje!D2:D83)","v":15}]

{"sheet":"Liste","index":2,"n_rows":91,"n_cols":7,"rows_kept":91,"cut":false,"hidden":false,"merged":[]}
["Srpski jezik i književnost",null,630,null,1.1000000000000001,null,"Ađanski Mate"]
["Srpski kao nematernji jezik",null,700,null,1.2,null,"Anđal Andor"]
["Mađarski jezik i književnost",null,null,null,1.3,null,"Anđelić Pero"]
["Hrvatski jezik i književnost",null,null,null,"1.a",null,"Andraši Monika"]
["Engleski jezik I",null,null,null,"1.b",null,"Bajić Sanja"]
["Engleski jezik II",null,null,null,"1.c",null,"Bakoš Elizabeta"]
["Nemački jezik I",null,null,null,"1.d",null,"Banjanin Ostrogonac Ljiljana"]
["Nemački jezik II",null,null,null,"1.e",null,"Barašić Aleksandar Huba"]
["Francuski jezik II",null,null,null,"1.f",null,"Barlai Jene"]
["Italijanski jezik II",null,null,null,2.1,null,"Barlai Jene"]
["Latinski jezik",null,null,null,2.2000000000000002,null,"Biač Gabor"]
["Ustav i prava građana",null,null,null,2.2999999999999998,null,"Bogdanović Bogdan"]
["Psihologija",null,null,null,"2.a",null,"Bogdanović Bogdan"]
["Sociologija",null,null,null,"2.b",null,"Bogdanović Sonja "]
["Filozofija",null,null,null,"2.c",null,"Buču Silvia"]
["Istorija",null,null,null,"2.d",null,"Buču Silvia"]
["Geografija",null,null,null,"2.e",null,"Budanović Gordana"]
["Biologija",null,null,null,"2.f",null,"Čamprag Slobodan"]
["Matematika",null,null,null,3.1,null,"Čudić Nevenka"]
["Fizika",null,null,null,3.2,null,"Đanić Jasna"]
["Hemija",null,null,null,3.3,null,"Đanić Jasna"]
["Računarstvo i informatika",null,null,null,"3.a",null,"Đorojević Bojana"]
["Muzička kultura",null,null,null,"3.b",null,"Đuraković Elvira"]
["Likovna kultura",null,null,null,"3.c",null,"Farago Silvia"]
["Fizičko vaspitanje",null,null,null,"3.d",null,"Filipović Ljiljana"]
["Građansko vaspitanje",null,null,null,"3.e",null,"Gajić Bogdan"]
["Verska nastava (SPC)",null,null,null,"3.f",null,"Gaković Ana"]
["Verska nastava (KC)",null,null,null,4.0999999999999996,null,"Gavrilov Bolić Borjana"]
[null,null,null,null,4.2,null,"Godanji Silvija"]
[null,null,null,null,4.3,null,"Hajdu Agneš"]
[null,null,null,null,"4.a",null,"Hajdu Agneš"]
[null,null,null,null,"4.b",null,"Hampelić Sonja"]
[null,null,null,null,"4.c",null,"Ivanković Mirjana"]
[null,null,null,null,"4.d",null,"Janković Olga"]
[null,null,null,null,"4.e",null,"Jo Endre"]
[null,null,null,null,"4.f",null,"Jotanović Ljubomir"]
[null,null,null,null,null,null,"Kiselički Mirko"]
[null,null,null,null,null,null,"Kovač Laura"]
[null,null,null,null,null,null,"Krnajski B. Ljiljana"]
[null,null,null,null,null,null,"Krstić Dragan"]
[null,null,null,null,null,null,"Marinović Dragutin"]
[null,null,null,null,null,null,"Matić Radomir"]
[null,null,null,null,null,null,"Mijatov Tanja"]
[null,null,null,null,null,null,"Milojević Klara"]
[null,null,null,null,null,null,"Mišković Biljana"]
[null,null,null,null,null,null,"Mlađan Ilić Danijela"]
[null,null,null,null,null,null,"Molnar Silvija"]
[null,null,null,null,null,null,"Molnar Silvija"]
[null,null,null,null,null,null,"Molnar Vig Hermina"]
[null,null,null,null,null,null,"Nađ Čaba"]
[null,null,null,null,null,null,"Nagel Zoran"]
[null,null,null,null,null,null,"Nedeljković Andrijana"]
[null,null,null,null,null,null,"Nikolić Ibolja"]
[null,null,null,null,null,null,"Pavlović Milena"]
[null,null,null,null,null,null,"Penovac Marta"]
[null,null,null,null,null,null,"Penovac Marta"]
[null,null,null,null,null,null,"Piuković Jelena"]
[null,null,null,null,null,null,"Pletikosić Balaž"]
[null,null,null,null,null,null,"Potkonjak Zora"]
[null,null,null,null,null,null,"Radović Milena"]
[null,null,null,null,null,null,"Reb Otilija"]
[null,null,null,null,null,null,"Reb Otilija"]
[null,null,null,null,null,null,"Ristić Silvija"]
[null,null,null,null,null,null,"Salatić Anđelko"]
[null,null,null,null,null,null,"Sič Emeše"]
[null,null,null,null,null,null,"Šimon Lidija"]
[null,null,null,null,null,null,"Šimon Lidija"]
[null,null,null,null,null,null,"Šipoš Andrea"]
[null,null,null,null,null,null,"Šipoš Andrea"]
[null,null,null,null,null,null,"Skenderović Olivera"]
[null,null,null,null,null,null,"Slavov Aleksandar"]
[null,null,null,null,null,null,"Šlingar Aniko"]
[null,null,null,null,null,null,"Stepanov Atizano Jelena"]
[null,null,null,null,null,null,"Štetić Mira"]
[null,null,null,null,null,null,"Štricki Vesna"]
[null,null,null,null,null,null,"Tajkov Biljana"]
[null,null,null,null,null,null,"Tanasić Biljana"]
[null,null,null,null,null,null,"Tatić Eva"]
[null,null,null,null,null,null,"Tešanović Dragica"]
[null,null,null,null,null,null,"Tešanović Dragica"]
[null,null,null,null,null,null,"Tešić Adriana"]
[null,null,null,null,null,null,"Tolnai Ester"]
[null,null,null,null,null,null,"Tolnai Ester"]
[null,null,null,null,null,null,"Utcai Robert"]
[null,null,null,null,null,null,"Vasiljević Nemanja"]
[null,null,null,null,null,null,"Vikor Đerđi"]
[null,null,null,null,null,null,"Vojčina Kristina"]
[null,null,null,null,null,null,"Vrkić Štraka Andrea"]
[null,null,null,null,null,null,"Vujačić Sanja"]
[null,null,null,null,null,null,"Vujanović Željko"]
[null,null,null,null,null,null,"Žužić Snežana"]

{"sheet":"Formule","index":3,"n_rows":15,"n_cols":1,"rows_kept":15,"cut":false,"hidden":false,"merged":[]}
[{"$f":"IF(OR('Baza podataka'!B3=\"Srpski jezik i književnost\",'Baza podataka'!B3=\"Mađarski jezik i književnost\",'Baza podataka'!B3=\"Hrvatski jezik i književnost\",'Baza podataka'!B3=\"Matematika\"),148, IF(OR('Baza podataka'!B3=\"Engleski jezik I\",'Baza podataka'!B3=\"Engleski jezik II\",'Baza podataka'!B3=\"Nemački jezik I\",'Baza podataka'!B3=\"Nemački jezik II\",'Baza podataka'!B3=\"Francuski jezik II\",'Baza podataka'!B3=\"Italijanski jezik II\",'Baza podataka'!B3=\"Latinski jezik\",'Baza podataka'!B3=\"Istorija\",'Baza podataka'!B3=\"Geografija\",'Baza podataka'!B3=\"Biologija\",'Baza podataka'!B3=\"Fizika\",'Baza podataka'!B3=\"Hemija\",'Baza podataka'!B3=\"Računarstvo i informatika\",'Baza podataka'!B3=\"Fizičko vaspitanje\"),74, IF(OR('Baza podataka'!B3=\"Muzička kultura\",'Baza podataka'!B3=\"Likovna kultura\",'Baza podataka'!B3=\"Građansko vaspitanje\",'Baza podataka'!B3=\"Verska nastava (SPC)\",'Baza podataka'!B3=\"Verska nastav (KC)\"),37)))","v":74}]
[{"$f":"IF(OR('Baza podataka'!B4=\"Srpski jezik i književnost\",'Baza podataka'!B4=\"Mađarski jezik i književnost\",'Baza podataka'!B4=\"Hrvatski jezik i književnost\",'Baza podataka'!B4=\"Matematika\"),148, IF(OR('Baza podataka'!B4=\"Engleski jezik I\",'Baza podataka'!B4=\"Engleski jezik II\",'Baza podataka'!B4=\"Nemački jezik I\",'Baza podataka'!B4=\"Nemački jezik II\",'Baza podataka'!B4=\"Francuski jezik II\",'Baza podataka'!B4=\"Italijanski jezik II\",'Baza podataka'!B4=\"Latinski jezik\",'Baza podataka'!B4=\"Istorija\",'Baza podataka'!B4=\"Geografija\",'Baza podataka'!B4=\"Biologija\",'Baza podataka'!B4=\"Fizika\",'Baza podataka'!B4=\"Hemija\",'Baza podataka'!B4=\"Računarstvo i informatika\",'Baza podataka'!B4=\"Fizičko vaspitanje\"),74, IF(OR('Baza podataka'!B4=\"Muzička kultura\",'Baza podataka'!B4=\"Likovna kultura\",'Baza podataka'!B4=\"Građansko vaspitanje\",'Baza podataka'!B4=\"Verska nastava (SPC)\",'Baza podataka'!B4=\"Verska nastav (KC)\"),37)))","v":false}]
[{"$f":"IF(OR('Baza podataka'!B5=\"Srpski jezik i književnost\",'Baza podataka'!B5=\"Mađarski jezik i književnost\",'Baza podataka'!B5=\"Hrvatski jezik i književnost\",'Baza podataka'!B5=\"Matematika\"),148, IF(OR('Baza podataka'!B5=\"Engleski jezik I\",'Baza podataka'!B5=\"Engleski jezik II\",'Baza podataka'!B5=\"Nemački jezik I\",'Baza podataka'!B5=\"Nemački jezik II\",'Baza podataka'!B5=\"Francuski jezik II\",'Baza podataka'!B5=\"Italijanski jezik II\",'Baza podataka'!B5=\"Latinski jezik\",'Baza podataka'!B5=\"Istorija\",'Baza podataka'!B5=\"Geografija\",'Baza podataka'!B5=\"Biologija\",'Baza podataka'!B5=\"Fizika\",'Baza podataka'!B5=\"Hemija\",'Baza podataka'!B5=\"Računarstvo i informatika\",'Baza podataka'!B5=\"Fizičko vaspitanje\"),74, IF(OR('Baza podataka'!B5=\"Muzička kultura\",'Baza podataka'!B5=\"Likovna kultura\",'Baza podataka'!B5=\"Građansko vaspitanje\",'Baza podataka'!B5=\"Verska nastava (SPC)\",'Baza podataka'!B5=\"Verska nastav (KC)\"),37)))","v":false}]
[{"$f":"IF(OR('Baza podataka'!B6=\"Srpski jezik i književnost\",'Baza podataka'!B6=\"Mađarski jezik i književnost\",'Baza podataka'!B6=\"Hrvatski jezik i književnost\",'Baza podataka'!B6=\"Matematika\"),148, IF(OR('Baza podataka'!B6=\"Engleski jezik I\",'Baza podataka'!B6=\"Engleski jezik II\",'Baza podataka'!B6=\"Nemački jezik I\",'Baza podataka'!B6=\"Nemački jezik II\",'Baza podataka'!B6=\"Francuski jezik II\",'Baza podataka'!B6=\"Italijanski jezik II\",'Baza podataka'!B6=\"Latinski jezik\",'Baza podataka'!B6=\"Istorija\",'Baza podataka'!B6=\"Geografija\",'Baza podataka'!B6=\"Biologija\",'Baza podataka'!B6=\"Fizika\",'Baza podataka'!B6=\"Hemija\",'Baza podataka'!B6=\"Računarstvo i informatika\",'Baza podataka'!B6=\"Fizičko vaspitanje\"),74, IF(OR('Baza podataka'!B6=\"Muzička kultura\",'Baza podataka'!B6=\"Likovna kultura\",'Baza podataka'!B6=\"Građansko vaspitanje\",'Baza podataka'!B6=\"Verska nastava (SPC)\",'Baza podataka'!B6=\"Verska nastav (KC)\"),37)))","v":false}]
[{"$f":"IF(OR('Baza podataka'!B7=\"Srpski jezik i književnost\",'Baza podataka'!B7=\"Mađarski jezik i književnost\",'Baza podataka'!B7=\"Hrvatski jezik i književnost\",'Baza podataka'!B7=\"Matematika\"),148, IF(OR('Baza podataka'!B7=\"Engleski jezik I\",'Baza podataka'!B7=\"Engleski jezik II\",'Baza podataka'!B7=\"Nemački jezik I\",'Baza podataka'!B7=\"Nemački jezik II\",'Baza podataka'!B7=\"Francuski jezik II\",'Baza podataka'!B7=\"Italijanski jezik II\",'Baza podataka'!B7=\"Latinski jezik\",'Baza podataka'!B7=\"Istorija\",'Baza podataka'!B7=\"Geografija\",'Baza podataka'!B7=\"Biologija\",'Baza podataka'!B7=\"Fizika\",'Baza podataka'!B7=\"Hemija\",'Baza podataka'!B7=\"Računarstvo i informatika\",'Baza podataka'!B7=\"Fizičko vaspitanje\"),74, IF(OR('Baza podataka'!B7=\"Muzička kultura\",'Baza podataka'!B7=\"Likovna kultura\",'Baza podataka'!B7=\"Građansko vaspitanje\",'Baza podataka'!B7=\"Verska nastava (SPC)\",'Baza podataka'!B7=\"Verska nastav (KC)\"),37)))","v":false}]
[{"$f":"IF(OR('Baza podataka'!B8=\"Srpski jezik i književnost\",'Baza podataka'!B8=\"Mađarski jezik i književnost\",'Baza podataka'!B8=\"Hrvatski jezik i književnost\",'Baza podataka'!B8=\"Matematika\"),148, IF(OR('Baza podataka'!B8=\"Engleski jezik I\",'Baza podataka'!B8=\"Engleski jezik II\",'Baza podataka'!B8=\"Nemački jezik I\",'Baza podataka'!B8=\"Nemački jezik II\",'Baza podataka'!B8=\"Francuski jezik II\",'Baza podataka'!B8=\"Italijanski jezik II\",'Baza podataka'!B8=\"Latinski jezik\",'Baza podataka'!B8=\"Istorija\",'Baza podataka'!B8=\"Geografija\",'Baza podataka'!B8=\"Biologija\",'Baza podataka'!B8=\"Fizika\",'Baza podataka'!B8=\"Hemija\",'Baza podataka'!B8=\"Računarstvo i informatika\",'Baza podataka'!B8=\"Fizičko vaspitanje\"),74, IF(OR('Baza podataka'!B8=\"Muzička kultura\",'Baza podataka'!B8=\"Likovna kultura\",'Baza podataka'!B8=\"Građansko vaspitanje\",'Baza podataka'!B8=\"Verska nastava (SPC)\",'Baza podataka'!B8=\"Verska nastav (KC)\"),37)))","v":false}]
[{"$f":"IF(OR('Baza podataka'!B9=\"Srpski jezik i književnost\",'Baza podataka'!B9=\"Mađarski jezik i književnost\",'Baza podataka'!B9=\"Hrvatski jezik i književnost\",'Baza podataka'!B9=\"Matematika\"),148, IF(OR('Baza podataka'!B9=\"Engleski jezik I\",'Baza podataka'!B9=\"Engleski jezik II\",'Baza podataka'!B9=\"Nemački jezik I\",'Baza podataka'!B9=\"Nemački jezik II\",'Baza podataka'!B9=\"Francuski jezik II\",'Baza podataka'!B9=\"Italijanski jezik II\",'Baza podataka'!B9=\"Latinski jezik\",'Baza podataka'!B9=\"Istorija\",'Baza podataka'!B9=\"Geografija\",'Baza podataka'!B9=\"Biologija\",'Baza podataka'!B9=\"Fizika\",'Baza podataka'!B9=\"Hemija\",'Baza podataka'!B9=\"Računarstvo i informatika\",'Baza podataka'!B9=\"Fizičko vaspitanje\"),74, IF(OR('Baza podataka'!B9=\"Muzička kultura\",'Baza podataka'!B9=\"Likovna kultura\",'Baza podataka'!B9=\"Građansko vaspitanje\",'Baza podataka'!B9=\"Verska nastava (SPC)\",'Baza podataka'!B9=\"Verska nastav (KC)\"),37)))","v":false}]
[{"$f":"IF(OR('Baza podataka'!B10=\"Srpski jezik i književnost\",'Baza podataka'!B10=\"Mađarski jezik i književnost\",'Baza podataka'!B10=\"Hrvatski jezik i književnost\",'Baza podataka'!B10=\"Matematika\"),148, IF(OR('Baza podataka'!B10=\"Engleski jezik I\",'Baza podataka'!B10=\"Engleski jezik II\",'Baza podataka'!B10=\"Nemački jezik I\",'Baza podataka'!B10=\"Nemački jezik II\",'Baza podataka'!B10=\"Francuski jezik II\",'Baza podataka'!B10=\"Italijanski jezik II\",'Baza podataka'!B10=\"Latinski jezik\",'Baza podataka'!B10=\"Istorija\",'Baza podataka'!B10=\"Geografija\",'Baza podataka'!B10=\"Biologija\",'Baza podataka'!B10=\"Fizika\",'Baza podataka'!B10=\"Hemija\",'Baza podataka'!B10=\"Računarstvo i informatika\",'Baza podataka'!B10=\"Fizičko vaspitanje\"),74, IF(OR('Baza podataka'!B10=\"Muzička kultura\",'Baza podataka'!B10=\"Likovna kultura\",'Baza podataka'!B10=\"Građansko vaspitanje\",'Baza podataka'!B10=\"Verska nastava (SPC)\",'Baza podataka'!B10=\"Verska nastav (KC)\"),37)))","v":false}]
[{"$f":"IF(OR('Baza podataka'!B11=\"Srpski jezik i književnost\",'Baza podataka'!B11=\"Mađarski jezik i književnost\",'Baza podataka'!B11=\"Hrvatski jezik i književnost\",'Baza podataka'!B11=\"Matematika\"),148, IF(OR('Baza podataka'!B11=\"Engleski jezik I\",'Baza podataka'!B11=\"Engleski jezik II\",'Baza podataka'!B11=\"Nemački jezik I\",'Baza podataka'!B11=\"Nemački jezik II\",'Baza podataka'!B11=\"Francuski jezik II\",'Baza podataka'!B11=\"Italijanski jezik II\",'Baza podataka'!B11=\"Latinski jezik\",'Baza podataka'!B11=\"Istorija\",'Baza podataka'!B11=\"Geografija\",'Baza podataka'!B11=\"Biologija\",'Baza podataka'!B11=\"Fizika\",'Baza podataka'!B11=\"Hemija\",'Baza podataka'!B11=\"Računarstvo i informatika\",'Baza podataka'!B11=\"Fizičko vaspitanje\"),74, IF(OR('Baza podataka'!B11=\"Muzička kultura\",'Baza podataka'!B11=\"Likovna kultura\",'Baza podataka'!B11=\"Građansko vaspitanje\",'Baza podataka'!B11=\"Verska nastava (SPC)\",'Baza podataka'!B11=\"Verska nastav (KC)\"),37)))","v":false}]
[{"$f":"IF(OR('Baza podataka'!B12=\"Srpski jezik i književnost\",'Baza podataka'!B12=\"Mađarski jezik i književnost\",'Baza podataka'!B12=\"Hrvatski jezik i književnost\",'Baza podataka'!B12=\"Matematika\"),148, IF(OR('Baza podataka'!B12=\"Engleski jezik I\",'Baza podataka'!B12=\"Engleski jezik II\",'Baza podataka'!B12=\"Nemački jezik I\",'Baza podataka'!B12=\"Nemački jezik II\",'Baza podataka'!B12=\"Francuski jezik II\",'Baza podataka'!B12=\"Italijanski jezik II\",'Baza podataka'!B12=\"Latinski jezik\",'Baza podataka'!B12=\"Istorija\",'Baza podataka'!B12=\"Geografija\",'Baza podataka'!B12=\"Biologija\",'Baza podataka'!B12=\"Fizika\",'Baza podataka'!B12=\"Hemija\",'Baza podataka'!B12=\"Računarstvo i informatika\",'Baza podataka'!B12=\"Fizičko vaspitanje\"),74, IF(OR('Baza podataka'!B12=\"Muzička kultura\",'Baza podataka'!B12=\"Likovna kultura\",'Baza podataka'!B12=\"Građansko vaspitanje\",'Baza podataka'!B12=\"Verska nastava (SPC)\",'Baza podataka'!B12=\"Verska nastav (KC)\"),37)))","v":false}]
[{"$f":"IF(OR('Baza podataka'!B13=\"Srpski jezik i književnost\",'Baza podataka'!B13=\"Mađarski jezik i književnost\",'Baza podataka'!B13=\"Hrvatski jezik i književnost\",'Baza podataka'!B13=\"Matematika\"),148, IF(OR('Baza podataka'!B13=\"Engleski jezik I\",'Baza podataka'!B13=\"Engleski jezik II\",'Baza podataka'!B13=\"Nemački jezik I\",'Baza podataka'!B13=\"Nemački jezik II\",'Baza podataka'!B13=\"Francuski jezik II\",'Baza podataka'!B13=\"Italijanski jezik II\",'Baza podataka'!B13=\"Latinski jezik\",'Baza podataka'!B13=\"Istorija\",'Baza podataka'!B13=\"Geografija\",'Baza podataka'!B13=\"Biologija\",'Baza podataka'!B13=\"Fizika\",'Baza podataka'!B13=\"Hemija\",'Baza podataka'!B13=\"Računarstvo i informatika\",'Baza podataka'!B13=\"Fizičko vaspitanje\"),74, IF(OR('Baza podataka'!B13=\"Muzička kultura\",'Baza podataka'!B13=\"Likovna kultura\",'Baza podataka'!B13=\"Građansko vaspitanje\",'Baza podataka'!B13=\"Verska nastava (SPC)\",'Baza podataka'!B13=\"Verska nastav (KC)\"),37)))","v":false}]
[{"$f":"IF(OR('Baza podataka'!B14=\"Srpski jezik i književnost\",'Baza podataka'!B14=\"Mađarski jezik i književnost\",'Baza podataka'!B14=\"Hrvatski jezik i književnost\",'Baza podataka'!B14=\"Matematika\"),148, IF(OR('Baza podataka'!B14=\"Engleski jezik I\",'Baza podataka'!B14=\"Engleski jezik II\",'Baza podataka'!B14=\"Nemački jezik I\",'Baza podataka'!B14=\"Nemački jezik II\",'Baza podataka'!B14=\"Francuski jezik II\",'Baza podataka'!B14=\"Italijanski jezik II\",'Baza podataka'!B14=\"Latinski jezik\",'Baza podataka'!B14=\"Istorija\",'Baza podataka'!B14=\"Geografija\",'Baza podataka'!B14=\"Biologija\",'Baza podataka'!B14=\"Fizika\",'Baza podataka'!B14=\"Hemija\",'Baza podataka'!B14=\"Računarstvo i informatika\",'Baza podataka'!B14=\"Fizičko vaspitanje\"),74, IF(OR('Baza podataka'!B14=\"Muzička kultura\",'Baza podataka'!B14=\"Likovna kultura\",'Baza podataka'!B14=\"Građansko vaspitanje\",'Baza podataka'!B14=\"Verska nastava (SPC)\",'Baza podataka'!B14=\"Verska nastav (KC)\"),37)))","v":false}]
[{"$f":"IF(OR('Baza podataka'!B15=\"Srpski jezik i književnost\",'Baza podataka'!B15=\"Mađarski jezik i književnost\",'Baza podataka'!B15=\"Hrvatski jezik i književnost\",'Baza podataka'!B15=\"Matematika\"),148, IF(OR('Baza podataka'!B15=\"Engleski jezik I\",'Baza podataka'!B15=\"Engleski jezik II\",'Baza podataka'!B15=\"Nemački jezik I\",'Baza podataka'!B15=\"Nemački jezik II\",'Baza podataka'!B15=\"Francuski jezik II\",'Baza podataka'!B15=\"Italijanski jezik II\",'Baza podataka'!B15=\"Latinski jezik\",'Baza podataka'!B15=\"Istorija\",'Baza podataka'!B15=\"Geografija\",'Baza podataka'!B15=\"Biologija\",'Baza podataka'!B15=\"Fizika\",'Baza podataka'!B15=\"Hemija\",'Baza podataka'!B15=\"Računarstvo i informatika\",'Baza podataka'!B15=\"Fizičko vaspitanje\"),74, IF(OR('Baza podataka'!B15=\"Muzička kultura\",'Baza podataka'!B15=\"Likovna kultura\",'Baza podataka'!B15=\"Građansko vaspitanje\",'Baza podataka'!B15=\"Verska nastava (SPC)\",'Baza podataka'!B15=\"Verska nastav (KC)\"),37)))","v":false}]
[{"$f":"IF(OR('Baza podataka'!B16=\"Srpski jezik i književnost\",'Baza podataka'!B16=\"Mađarski jezik i književnost\",'Baza podataka'!B16=\"Hrvatski jezik i književnost\",'Baza podataka'!B16=\"Matematika\"),148, IF(OR('Baza podataka'!B16=\"Engleski jezik I\",'Baza podataka'!B16=\"Engleski jezik II\",'Baza podataka'!B16=\"Nemački jezik I\",'Baza podataka'!B16=\"Nemački jezik II\",'Baza podataka'!B16=\"Francuski jezik II\",'Baza podataka'!B16=\"Italijanski jezik II\",'Baza podataka'!B16=\"Latinski jezik\",'Baza podataka'!B16=\"Istorija\",'Baza podataka'!B16=\"Geografija\",'Baza podataka'!B16=\"Biologija\",'Baza podataka'!B16=\"Fizika\",'Baza podataka'!B16=\"Hemija\",'Baza podataka'!B16=\"Računarstvo i informatika\",'Baza podataka'!B16=\"Fizičko vaspitanje\"),74, IF(OR('Baza podataka'!B16=\"Muzička kultura\",'Baza podataka'!B16=\"Likovna kultura\",'Baza podataka'!B16=\"Građansko vaspitanje\",'Baza podataka'!B16=\"Verska nastava (SPC)\",'Baza podataka'!B16=\"Verska nastav (KC)\"),37)))","v":false}]
[{"$f":"IF(OR('Baza podataka'!B17=\"Srpski jezik i književnost\",'Baza podataka'!B17=\"Mađarski jezik i književnost\",'Baza podataka'!B17=\"Hrvatski jezik i književnost\",'Baza podataka'!B17=\"Matematika\"),148, IF(OR('Baza podataka'!B17=\"Engleski jezik I\",'Baza podataka'!B17=\"Engleski jezik II\",'Baza podataka'!B17=\"Nemački jezik I\",'Baza podataka'!B17=\"Nemački jezik II\",'Baza podataka'!B17=\"Francuski jezik II\",'Baza podataka'!B17=\"Italijanski jezik II\",'Baza podataka'!B17=\"Latinski jezik\",'Baza podataka'!B17=\"Istorija\",'Baza podataka'!B17=\"Geografija\",'Baza podataka'!B17=\"Biologija\",'Baza podataka'!B17=\"Fizika\",'Baza podataka'!B17=\"Hemija\",'Baza podataka'!B17=\"Računarstvo i informatika\",'Baza podataka'!B17=\"Fizičko vaspitanje\"),74, IF(OR('Baza podataka'!B17=\"Muzička kultura\",'Baza podataka'!B17=\"Likovna kultura\",'Baza podataka'!B17=\"Građansko vaspitanje\",'Baza podataka'!B17=\"Verska nastava (SPC)\",'Baza podataka'!B17=\"Verska nastav (KC)\"),37)))","v":false}]

{"sheet":"Odeljenja","index":4,"n_rows":37,"n_cols":3,"rows_kept":37,"cut":false,"hidden":false,"merged":[]}
["Odeljenje","Razred","Smer"]
[1.1000000000000001,"I","A"]
[1.2,"I","B"]
[1.3,"I","C"]
["1.a","I","A"]
["1.b","I","B"]
["1.c","I","C"]
["1.d","I","A"]
["1.e","I","B"]
["1.f","I","C"]
[2.1,"II","A"]
[2.2000000000000002,"II","B"]
[2.2999999999999998,"II","C"]
["2.a","II","A"]
["2.b","II","B"]
["2.c","II","C"]
["2.d","II","A"]
["2.e","II","B"]
["2.f","II","C"]
[3.1,"III","A"]
[3.2,"III","B"]
[3.3,"III","C"]
["3.a","III","A"]
["3.b","III","B"]
["3.c","III","C"]
["3.d","III","A"]
["3.e","III","B"]
["3.f","III","C"]
[4.0999999999999996,"IV","A"]
[4.2,"IV","B"]
[4.3,"IV","C"]
["4.a","IV","A"]
["4.b","IV","B"]
["4.c","IV","C"]
["4.d","IV","A"]
["4.e","IV","B"]
["4.f","IV","C"]

{"sheet":"Predmeti","index":5,"n_rows":24,"n_cols":3,"rows_kept":24,"cut":false,"hidden":false,"merged":[]}
["Sifra","Predmet","Nedeljno časova"]
["NEM2","Nemački jezik II",2]
["FRA2","Francuski jezik II",2]
["ITA2","Italijanski jezik II",2]
["LAT2","Latinski jezik",2]
["USTP","Ustav i prava građana",3]
["PSIH","Psihologija",3]
["SOC","Sociologija",2]
["FIL","Filozofija",2]
["IST2","Istorija",2]
["IST3","Istorija",3]
["GEO","Geografija",2]
["BIO","Biologija",3]
["MAT4","Matematika",4]
["MAT3","Matematika",3]
["FIZ2","Fizika",2]
["HEM2","Hemija",2]
["RAČ2","Računarstvo i informatika",2]
["MUZ2","Muzička kultura",2]
["LIK2","Likovna kultura",2]
["FIZ2","Fizičko vaspitanje",2]
["GRA2","Građansko vaspitanje",2]
["VER2","Verska nastava (SPC)",2]
["VER2","Verska nastava (KC)",2]

{"sheet":"Predaje","index":6,"n_rows":83,"n_cols":4,"rows_kept":83,"cut":false,"hidden":false,"merged":[]}
["Profesor","Predmet","Odeljenje","Časova"]
["Ađanski Mate","IST2","3.a",{"$f":"VLOOKUP(B2,Predmeti!A2:C24,3,FALSE)","v":2}]
["Ađanski Mate","IST2","3.f",{"$f":"VLOOKUP(B3,Predmeti!A3:C25,3,FALSE)","v":2}]
["Ađanski Mate","IST2",1.1000000000000001,{"$f":"VLOOKUP(B4,Predmeti!A4:C26,3,FALSE)","v":2}]
["Ađanski Mate","IST2","1.b",{"$f":"VLOOKUP(B5,Predmeti!A5:C27,3,FALSE)","v":2}]
["Ađanski Mate","IST2","1.c",{"$f":"VLOOKUP(B6,Predmeti!A6:C28,3,FALSE)","v":2}]
["Ađanski Mate","IST3","3e",{"$f":"VLOOKUP(B7,Predmeti!A7:C29,3,FALSE)","v":3}]
["Ađanski Mate","IST2","3e",{"$f":"VLOOKUP(B8,Predmeti!A8:C30,3,FALSE)","v":2}]
["Budanović Gordana"]
["Čamprag Slobodan"]
["Čudić Nevenka"]
["Đanić Jasna"]
["Đanić Jasna"]
["Đorojević Bojana"]
["Đuraković Elvira"]
["Farago Silvia"]
["Filipović Ljiljana"]
["Gajić Bogdan"]
["Gaković Ana"]
["Gavrilov Bolić Borjana"]
["Godanji Silvija"]
["Hajdu Agneš"]
["Hajdu Agneš"]
["Hampelić Sonja"]
["Ivanković Mirjana"]
["Janković Olga"]
["Jo Endre"]
["Jotanović Ljubomir"]
["Kiselički Mirko"]
["Kovač Laura"]
["Krnajski B. Ljiljana"]
["Krstić Dragan"]
["Marinović Dragutin"]
["Matić Radomir"]
["Mijatov Tanja"]
["Milojević Klara"]
["Mišković Biljana"]
["Mlađan Ilić Danijela"]
["Molnar Silvija"]
["Molnar Silvija"]
["Molnar Vig Hermina"]
["Nađ Čaba"]
["Nagel Zoran"]
["Nedeljković Andrijana"]
["Nikolić Ibolja"]
["Pavlović Milena"]
["Penovac Marta"]
["Penovac Marta"]
["Piuković Jelena"]
["Pletikosić Balaž"]
["Potkonjak Zora"]
["Radović Milena"]
["Reb Otilija"]
["Reb Otilija"]
["Ristić Silvija"]
["Salatić Anđelko"]
["Sič Emeše"]
["Šimon Lidija"]
["Šimon Lidija"]
["Šipoš Andrea"]
["Šipoš Andrea"]
["Skenderović Olivera"]
["Slavov Aleksandar"]
["Šlingar Aniko"]
["Stepanov Atizano Jelena"]
["Štetić Mira"]
["Štricki Vesna"]
["Tajkov Biljana"]
["Tanasić Biljana"]
["Tatić Eva"]
["Tešanović Dragica"]
["Tešanović Dragica"]
["Tešić Adriana"]
["Tolnai Ester"]
["Tolnai Ester"]
["Utcai Robert"]
["Vasiljević Nemanja"]
["Vikor Đerđi"]
["Vojčina Kristina"]
["Vrkić Štraka Andrea"]
["Vujačić Sanja"]
["Vujanović Željko"]
["Žužić Snežana"]